[Event "FIDE World Cup O12-TB 2024"]
[Site "Batumi"]
[Date "2024.07.02"]
[Round "2.1"]
[White "Qu, Haoming"]
[Black "Obidov, Biloliddin"]
[Result "1/2-1/2"]
[ECO "B23"]
[WhiteElo "1877"]
[BlackElo "1998"]
[Annotator "NA RC"]
[PlyCount "71"]
[EventDate "2024.06.23"]
[EventType "swiss"]
[EventCountry "GEO"]
[SourceTitle "playchess.com"]
[Source "ChessBase"]
[SourceQuality "1"]
[TimeControl "5400+30"]

1. e4 {[%emt 0:00:01]} c5 {[%emt 0:01:34]} 2. Nc3 {[%emt 0:00:26]} e6 {[%emt 0:01:59]} 3. Nge2 {[%emt 0:00:20]} Nc6 {[%emt 0:00:16]} 4. g3 {[%emt 0:00:16]} d6 {[%emt 0:00:20]} 5. Bg2 {[%emt 0:04:00]} g6 {[%emt 0:00:05]} 6. d4 {[%emt 0:00:24] B23: Closed Sicilian: Lines without g3.} cxd4 {[%emt 0:00:58]} 7. Nxd4 {[%emt 0:00:10]} a6 {[%emt 0:00:05]} 8. O-O {[%emt 0:02:11]} Bg7 {[%emt 0:00:57]} 9. Be3 {[%emt 0:01:09]} Nge7 {[%emt 0:00:11]} 10. Qd2 {[%emt 0:01:14]} O-O {[%emt 0:00:51]} 11. Rad1 {[%emt 0:01:11]} Ne5 {[%emt 0:00:40]} 12. Qe2 {[%emt 0:04:10]} b5 {[%emt 0:07:52]} 13. a4 {[%emt 0:04:36]} b4 {[%emt 0:00:43]} 14. Nb1 {[%emt 0:00:16]} Bb7 {[%emt 0:00:29]} 15. f4 {[%emt 0:01:26]} Nd7 {[%emt 0:00:32]} 16. Bf2 {[%emt 0:06:06]} e5 {[%emt 0:01:18]} 17. fxe5 {[%emt 0:03:31]} Nxe5 {[%emt 0:00:47]} 18. c4 {[%emt 0:03:59]} bxc3 {[%emt 0:13:30]} 19. Nxc3 {[%emt 0:00:08]} Rc8 {[%emt 0:00:11]} 20. Bh3 {[%emt 0:01:41]} Rb8 {[%emt 0:03:43]} 21. Bg2 {[%emt 0:04:39]} Qa5 {[%emt 0:05:18]} 22. Nc2 {[%emt 0:08:55]} Bc6 {[%emt 0:10:33]} 23. Ne3 {[%emt 0:12:20]} Qb4 {[%emt 0:04:12]} 24. Ncd5 {[%emt 0:02:31]} Nxd5 {[%emt 0:01:05]} 25. Nxd5 {[%emt 0:00:07]} Qxa4 {[%emt 0:03:33]} 26. Ne7+ {[%emt 0:03:18]} Kh8 $17 {[%emt 0:00:08]} 27. Nxc6 {[%emt 0:00:13]} Qxc6 {[%emt 0:00:09]} 28. Bd4 {[%emt 0:00:17]} Qc4 {[%emt 0:04:37]} 29. Qd2 {[%emt 0:02:45]} Ng4 {[%emt 0:01:17]} 30. Bxg7+ {[%emt 0:00:58]} Kxg7 {[%emt 0:00:06]} 31. Rf4 {[%emt 0:00:04]} Qc5+ {[%emt 0:04:29]} 32. Kh1 {[%emt 0:00:15]} h5 {[%emt 0:00:52]} 33. h3 {[%emt 0:04:35]} Ne5 {[%emt 0:00:18]} 34. Qxd6 {[%emt 0:00:28]} Qxd6 {[%emt 0:04:27]} 35. Rxd6 {[%emt 0:00:08]} Rxb2 {[%emt 0:01:29]} 36. Rxa6 {[%emt 0:00:08]} 1/2-1/2

[Event "FIDE World Cup O12-TB 2024"]
[Site "Batumi"]
[Date "2024.07.02"]
[Round "2.2"]
[White "Bulgak, Damir"]
[Black "Gabadadze, Gabriel"]
[Result "1-0"]
[ECO "E18"]
[WhiteElo "1931"]
[BlackElo "1975"]
[Annotator "NA RC"]
[PlyCount "65"]
[EventDate "2024.06.23"]
[EventType "swiss"]
[EventCountry "GEO"]
[SourceTitle "playchess.com"]
[Source "ChessBase"]
[SourceQuality "1"]
[TimeControl "5400+30"]

1. d4 {[%emt 0:00:07]} Nf6 {[%emt 0:00:18]} 2. c4 {[%emt 0:00:07]} e6 {[%emt 0:00:03]} 3. Nf3 {[%emt 0:00:04]} b6 {[%emt 0:00:04]} 4. g3 {[%emt 0:00:11]} Bb7 {[%emt 0:00:06]} 5. Bg2 {[%emt 0:00:05]} Be7 {[%emt 0:00:04]} 6. O-O {[%emt 0:00:06]} O-O {[%emt 0:00:03]} 7. Nc3 {[%emt 0:00:09]} Ne4 {[%emt 0:00:58]} 8. Bd2 {[%emt 0:00:11] is recently more successful than 8.Qc2.} Bf6 {[%emt 0:01:48]} 9. Re1 {[%emt 0:00:22] E18: Queen's Indian: Old Main Line (4 g3 Bb7 5 Bg2 Be7 6 0-0 0-0 7 Nc3).} c5 {[%emt 0:11:43]} 10. d5 {[%emt 0:15:54]} Nxc3 {[%emt 0:04:11]} 11. Bxc3 {[%emt 0:00:06]} Bxc3 {[%emt 0:00:48]} 12. bxc3 {[%emt 0:00:06]} exd5 {[%emt 0:04:01]} 13. cxd5 {[%emt 0:00:03]} d6 {[%emt 0:00:49]} 14. e4 {[%emt 0:00:57]} Nd7 {[%emt 0:08:00]} 15. Nd2 {[%emt 0:02:08]} Qf6 $146 {[%emt 0:05:06]} ({Predecessor:} 15... b5 16. a4 a6 17. f4 c4 18. Nf3 Nc5 19. axb5 axb5 20. Rxa8 Qxa8 21. Qd4 Re8 {½-½ Sjugirov,S (2696)-Durarbayli,V (2638) Titled Tuesday intern op 07th Jun Early blitz 2022 (7)}) 16. Qc2 {[%emt 0:01:07]} Rfe8 {[%emt 0:06:35]} 17. f4 {[%emt 0:00:11]} Rad8 {[%emt 0:07:47]} 18. a4 {[%emt 0:01:33]} h6 {[%emt 0:07:29]} 19. Nf3 {[%emt 0:02:43]} c4 {[%emt 0:05:16]} 20. Rad1 {[%emt 0:04:12]} Rc8 {[%emt 0:03:44]} 21. Bh3 {[%emt 0:02:55]} Rc7 {[%emt 0:02:31]} 22. e5 {[%emt 0:01:04]} Nxe5 {[%emt 0:06:40]} 23. fxe5 {[%emt 1:07:39]} dxe5 {[%emt 0:00:42]} 24. Qf5 {[%emt 0:00:00]} Qxf5 {[%emt 0:03:39]} 25. Bxf5 {[%emt 0:00:00]} g6 $2 {[%emt 0:00:47]} (25... Rc5 26. Rxe5 (26. Nxe5 Rxd5 27. Rxd5 Bxd5 $18) 26... Rxe5 27. Nxe5 Bxd5) 26. d6 {[%emt 0:01:30]} ({Not} 26. Rxe5 Rxe5 27. Nxe5 gxf5 $16) 26... Rc5 {[%emt 0:01:06]} 27. Bd7 {[%emt 0:00:00]} Rd8 {[%emt 0:03:31]} 28. Nxe5 {[%emt 0:00:00]} Kg7 {[%emt 0:00:57]} 29. Bb5 {[%emt 0:00:00]} a6 $18 {[%emt 0:05:25]} 30. Bxc4 {[%emt 0:00:00]} b5 {[%emt 0:00:08]} 31. axb5 {[%emt 0:00:00]} axb5 {[%emt 0:00:02]} 32. Nxf7 {[%emt 0:00:00]} Rf8 {[%emt 0:00:41]} 33. d7 {[%emt 0:00:00]} 1-0

[Event "FIDE World Cup O12-TB 2024"]
[Site "Batumi"]
[Date "2024.07.02"]
[Round "2.3"]
[White "Ibrahimli, Suat"]
[Black "Guo, Ethan"]
[Result "1/2-1/2"]
[ECO "D75"]
[WhiteElo "1852"]
[BlackElo "2136"]
[Annotator "RC"]
[PlyCount "39"]
[EventDate "2024.06.23"]
[EventType "swiss"]
[EventCountry "GEO"]
[SourceTitle "playchess.com"]
[Source "ChessBase"]
[SourceQuality "1"]
[TimeControl "5400+30"]

1. d4 {[%emt 0:00:01]} Nf6 {[%emt 0:04:22]} 2. c4 {[%emt 0:00:07]} g6 {[%emt 0:00:08]} 3. Nc3 {[%emt 0:00:11]} d5 {[%emt 0:00:04]} 4. cxd5 {[%emt 0:00:05]} Nxd5 {[%emt 0:00:04]} 5. g3 {[%emt 0:00:24]} Bg7 {[%emt 0:00:40]} 6. Bg2 {[%emt 0:00:13]} Nxc3 {[%emt 0:00:37]} 7. bxc3 {[%emt 0:00:04]} c5 {[%emt 0:01:02]} 8. Nf3 {[%emt 0:00:05]} Nc6 {[%emt 0:01:22]} 9. Be3 {[%emt 0:01:06]} O-O {[%emt 0:01:32]} 10. O-O {[%emt 0:00:16]} cxd4 {[%emt 0:01:39]} 11. cxd4 {[%emt 0:01:56]} Bg4 {[%emt 0:03:26]} 12. Rb1 {[%emt 0:03:44]} Bxf3 {[%emt 0:08:34]} 13. Bxf3 {[%emt 0:00:29]} Nxd4 {[%emt 0:00:13]} 14. Rxb7 {[%emt 0:02:32]} Nxf3+ {[%emt 0:01:54]} 15. exf3 {[%emt 0:00:17]} Qa5 {[%emt 0:02:04]} 16. Qb3 {[%emt 0:00:34]} Bf6 {[%emt 0:00:32]} 17. Rd1 {[%emt 0:04:29]} a6 {[%emt 0:05:31]} 18. Bd4 {[%emt 0:09:31]} Bxd4 {[%emt 0:03:49]} 19. Rxd4 {[%emt 0:00:09]} Rad8 {[%emt 0:02:32]} 20. Qb4 {[%emt 0:15:53]} 1/2-1/2

[Event "FIDE World Cup O12-TB 2024"]
[Site "Batumi"]
[Date "2024.07.02"]
[Round "2.4"]
[White "Syed Abdul Khader"]
[Black "Batbaatar, Baatar"]
[Result "1-0"]
[ECO "E49"]
[WhiteElo "2050"]
[BlackElo "1724"]
[Annotator "NA RC"]
[PlyCount "57"]
[EventDate "2024.06.23"]
[EventType "swiss"]
[EventCountry "GEO"]
[SourceTitle "playchess.com"]
[Source "ChessBase"]
[SourceQuality "1"]
[TimeControl "5400+30"]

1. d4 {[%emt 0:00:28]} Nf6 {[%emt 0:00:11]} 2. c4 {[%emt 0:00:18]} e6 {[%emt 0:00:05]} 3. Nc3 {[%emt 0:00:10]} Bb4 {[%emt 0:00:05]} 4. e3 {[%emt 0:00:11]} O-O {[%emt 0:00:11]} 5. a3 {[%emt 0:00:02]} Bxc3+ {[%emt 0:01:39]} 6. bxc3 {[%emt 0:00:04]} d5 {[%emt 0:00:04]} 7. cxd5 {[%emt 0:00:15]} exd5 {[%emt 0:00:16]} 8. Bd3 {[%emt 0:00:05]} c5 {[%emt 0:00:26]} 9. Ne2 {[%emt 0:00:03]} Nc6 {[%emt 0:01:41]} 10. O-O {[%emt 0:00:37]} c4 {[%emt 0:02:23]} 11. Bc2 {[%emt 0:01:18]} b5 {[%emt 0:01:40]} 12. f3 {[%emt 0:00:19]} h6 {[%emt 0:02:12]} 13. Ng3 {[%emt 0:06:53]} a5 {[%emt 0:02:35]} 14. e4 {[%emt 0:00:25]} dxe4 {[%emt 0:01:59]} 15. fxe4 {[%emt 0:00:19]} Ra6 {[%emt 0:02:31]} 16. Qf3 {[%emt 0:12:43]} Ne7 {[%emt 0:06:55]} 17. Rb1 {[%emt 0:03:20]} Rb6 {[%emt 0:02:24]} 18. Bd2 {[%emt 0:07:24]} Ng6 {[%emt 0:04:31]} 19. e5 {[%emt 0:03:18]} Nd5 {[%emt 0:01:05]} 20. Ne4 {[%emt 0:02:02]} Nh4 {[%emt 0:17:51]} 21. Qf2 {[%emt 0:00:45]} Nf5 {[%emt 0:02:11]} 22. Kh1 {[%emt 0:04:31]} Be6 {[%emt 0:01:32]} 23. Nc5 {[%emt 0:03:50]} Nfe7 {[%emt 0:00:49]} 24. Nxe6 {[%emt 0:02:09]} fxe6 {[%emt 0:01:44]} 25. Qe2 {[%emt 0:01:12]} Kh8 {[%emt 0:06:26]} 26. Qe4 {[%emt 0:00:23]} Rf5 {[%emt 0:03:14]} 27. g4 {[%emt 0:00:14]} Rxf1+ {[%emt 0:00:17]} 28. Rxf1 {[%emt 0:00:01]} Qg8 {[%emt 0:00:07]} 29. Rf8 {[%emt 0:00:14]} 1-0

[Event "FIDE World Cup O12-TB 2024"]
[Site "Batumi"]
[Date "2024.07.02"]
[Round "2.5"]
[White "Aadik Theophane Lenin"]
[Black "Wang, Ted"]
[Result "1/2-1/2"]
[ECO "B07"]
[WhiteElo "1852"]
[BlackElo "2034"]
[Annotator "NA RC"]
[PlyCount "72"]
[EventDate "2024.06.23"]
[EventType "swiss"]
[EventCountry "GEO"]
[SourceTitle "playchess.com"]
[Source "ChessBase"]
[SourceQuality "1"]
[TimeControl "5400+30"]

1. d4 {[%emt 0:00:27]} Nf6 {[%emt 0:00:01]} 2. Nf3 {[%emt 0:00:08]} g6 {[%emt 0:00:05]} 3. g3 {[%emt 0:00:04]} Bg7 {[%emt 0:00:09]} 4. Bg2 {[%emt 0:00:02]} O-O {[%emt 0:00:10]} 5. O-O {[%emt 0:00:03]} d6 {[%emt 0:00:06]} 6. Nc3 {[%emt 0:00:03]} Nbd7 {[%emt 0:00:56]} 7. e4 {[%emt 0:01:18]} e5 {[%emt 0:00:32]} 8. h3 {[%emt 0:00:07]} c6 {[%emt 0:01:33]} 9. a4 {[%emt 0:00:02]} a5 {[%emt 0:00:29]} 10. Be3 {[%emt 0:00:32]} Qe7 {[%emt 0:01:33]} 11. Re1 {[%emt 0:01:20]} exd4 {[%emt 0:01:03]} 12. Bxd4 {[%emt 0:01:23]} Ne5 {[%emt 0:01:12]} 13. Nh2 {[%emt 0:09:58]} c5 {[%emt 0:11:29]} 14. Be3 {[%emt 0:00:27]} Nc4 {[%emt 0:05:51]} 15. Qc1 {[%emt 0:03:56]} Nxe3 {[%emt 0:02:42]} 16. Qxe3 {[%emt 0:00:14]} Nd7 {[%emt 0:02:01]} 17. Nd5 {[%emt 0:00:24]} Qd8 {[%emt 0:00:09]} 18. c3 {[%emt 0:00:07]} Nb6 {[%emt 0:01:21]} 19. Qd2 {[%emt 0:05:53]} Nxd5 {[%emt 0:00:40]} 20. Qxd5 {[%emt 0:01:27]} Qb6 {[%emt 0:02:39]} 21. Qd2 {[%emt 0:00:27]} Kh8 {[%emt 0:06:12]} 22. f4 {[%emt 0:06:08]} Bd7 {[%emt 0:09:02]} 23. Nf1 {[%emt 0:09:52]} Rad8 {[%emt 0:05:19]} 24. Ne3 {[%emt 0:00:47]} Qa6 {[%emt 0:07:06]} 25. Bf1 {[%emt 0:05:54]} Qc6 {[%emt 0:03:22]} 26. Nc4 {[%emt 0:01:16]} Be6 {[%emt 0:03:20]} 27. Nxa5 {[%emt 0:01:34]} Qc7 {[%emt 0:00:31]} 28. c4 {[%emt 0:03:56]} Qb6 {[%emt 0:00:36]} 29. Ra3 {[%emt 0:02:33]} Qxb2 {[%emt 0:02:11]} 30. Qxb2 {[%emt 0:00:04]} Bxb2 {[%emt 0:00:07]} 31. Rb3 {[%emt 0:00:06]} Bd4+ {[%emt 0:00:03]} 32. Kh1 {[%emt 0:00:31]} Bc8 {[%emt 0:02:19]} 33. Bg2 {[%emt 0:01:04]} Rd7 {[%emt 0:02:00]} 34. e5 {[%emt 0:01:37]} dxe5 {[%emt 0:01:42]} 35. Nxb7 {[%emt 0:02:37]} e4 {[%emt 0:02:55]} 36. Reb1 {[%emt 0:10:00]} e3 {[%emt 0:03:59]} 1/2-1/2

[Event "FIDE World Cup O12-TB 2024"]
[Site "Batumi"]
[Date "2024.07.02"]
[Round "2.6"]
[White "Yang, ZiLong"]
[Black "Garakhanov, Shamsi"]
[Result "1-0"]
[ECO "B92"]
[WhiteElo "1874"]
[BlackElo "1884"]
[Annotator "NA RC"]
[PlyCount "83"]
[EventDate "2024.06.23"]
[EventType "swiss"]
[EventCountry "GEO"]
[SourceTitle "playchess.com"]
[Source "ChessBase"]
[SourceQuality "1"]
[TimeControl "5400+30"]

1. e4 {[%emt 0:00:13]} c5 {[%emt 0:00:03]} 2. Nf3 {[%emt 0:00:07]} d6 {[%emt 0:00:23]} 3. d4 {[%emt 0:00:11]} cxd4 {[%emt 0:00:04]} 4. Nxd4 {[%emt 0:00:03]} Nf6 {[%emt 0:00:05]} 5. Nc3 {[%emt 0:00:03]} a6 {[%emt 0:00:04]} 6. Be2 {[%emt 0:00:03]} e5 {[%emt 0:00:03]} 7. Nb3 {[%emt 0:00:03]} Be7 {[%emt 0:00:39]} 8. O-O {[%emt 0:03:14]} Be6 {[%emt 0:00:10]} 9. f4 {[%emt 0:00:13]} exf4 {[%emt 0:07:00]} 10. Bxf4 {[%emt 0:00:10]} Nc6 {[%emt 0:00:50]} 11. Qd3 {[%emt 0:09:21]} Ne5 {[%emt 0:04:38]} 12. Qg3 {[%emt 0:05:03]} Ng6 {[%emt 0:00:09]} 13. Be3 {[%emt 0:00:34]} O-O {[%emt 0:08:46]} 14. Nd4 {[%emt 0:03:05]} Rc8 {[%emt 0:00:55]} 15. Nxe6 {[%emt 0:13:55]} fxe6 {[%emt 0:00:04]} 16. Rad1 {[%emt 0:00:06]} Kh8 {[%emt 0:02:24]} 17. Qh3 {[%emt 0:09:56]} Qd7 {[%emt 0:02:28]} 18. Bd4 {[%emt 0:00:25]} e5 {[%emt 0:07:06]} 19. Qxd7 {[%emt 0:04:04]} Nxd7 {[%emt 0:00:03]} 20. Be3 {[%emt 0:00:13]} Nf6 {[%emt 0:03:18]} 21. a4 {[%emt 0:02:19]} Rfd8 {[%emt 0:02:25]} 22. g3 {[%emt 0:09:19]} Rd7 {[%emt 0:08:56]} 23. Bd3 {[%emt 0:27:28]} Rdc7 {[%emt 0:05:49]} 24. Nd5 {[%emt 0:01:08]} Nxd5 {[%emt 0:02:38]} 25. exd5 {[%emt 0:00:01]} Bf6 {[%emt 0:00:51]} 26. b3 {[%emt 0:02:16]} Re7 {[%emt 0:06:43]} 27. Bf5 {[%emt 0:01:18]} Rce8 {[%emt 0:01:42]} 28. c4 {[%emt 0:04:56]} Rc7 {[%emt 0:01:22]} 29. Bb6 {[%emt 0:00:10]} Rf7 {[%emt 0:00:08]} 30. Be6 {[%emt 0:03:48]} Rfe7 {[%emt 0:00:04]} 31. c5 {[%emt 0:00:15]} dxc5 {[%emt 0:00:06]} 32. Bxc5 {[%emt 0:00:02]} Rc7 {[%emt 0:00:04]} 33. b4 {[%emt 0:00:29]} Nf8 {[%emt 0:01:17]} 34. Bf5 {[%emt 0:00:34]} a5 {[%emt 0:01:12]} 35. d6 {[%emt 0:00:36]} Rc6 {[%emt 0:00:14]} 36. d7 {[%emt 0:01:30]} Rd8 {[%emt 0:00:04]} 37. Be4 {[%emt 0:00:13]} Rxc5 {[%emt 0:02:54]} 38. bxc5 {[%emt 0:00:08]} Rxd7 {[%emt 0:00:02]} 39. Rd6 {[%emt 0:01:12]} Rxd6 {[%emt 0:02:36]} 40. cxd6 {[%emt 0:00:02]} b6 {[%emt 0:00:05]} 41. Rb1 {[%emt 0:01:25]} Bd8 {[%emt 0:00:54]} 42. Rc1 {[%emt 0:00:01]} 1-0

[Event "FIDE World Cup O12-TB 2024"]
[Site "Batumi"]
[Date "2024.07.02"]
[Round "2.7"]
[White "Zhang, Haoxuan(Zj)"]
[Black "Siddhanth Poonja"]
[Result "1-0"]
[ECO "B22"]
[WhiteElo "1907"]
[BlackElo "1958"]
[Annotator "NA RC"]
[PlyCount "115"]
[EventDate "2024.06.23"]
[EventType "swiss"]
[EventCountry "GEO"]
[SourceTitle "playchess.com"]
[Source "ChessBase"]
[SourceQuality "1"]
[TimeControl "5400+30"]

1. e4 {[%emt 0:00:04]} c5 {[%emt 0:01:05]} 2. Nf3 {[%emt 0:00:04]} g6 {[%emt 0:00:24]} 3. c3 {[%emt 0:00:05]} d5 {[%emt 0:00:12]} 4. e5 {[%emt 0:00:04]} Nc6 {[%emt 0:00:07]} 5. d4 {[%emt 0:01:21]} cxd4 {[%emt 0:00:09]} 6. cxd4 {[%emt 0:00:04]} Bg4 {[%emt 0:00:07]} 7. Bb5 {[%emt 0:01:53]} Qb6 {[%emt 0:00:30]} 8. Bxc6+ {[%emt 0:01:56]} Qxc6 {[%emt 0:00:50]} 9. O-O {[%emt 0:00:54]} Nh6 {[%emt 0:00:45]} 10. Nbd2 {[%emt 0:01:05]} Nf5 {[%emt 0:00:36]} 11. h3 {[%emt 0:01:08]} Bxf3 {[%emt 0:00:07]} 12. Nxf3 {[%emt 0:00:03]} h5 {[%emt 0:06:03]} 13. Bg5 {[%emt 0:02:00]} Bh6 {[%emt 0:08:42]} 14. Rc1 {[%emt 0:01:42]} Qa6 {[%emt 0:10:00]} 15. Bxh6 {[%emt 0:02:35]} Nxh6 {[%emt 0:00:25]} 16. Rc7 {[%emt 0:01:33]} O-O {[%emt 0:25:53]} 17. Qd2 {[%emt 0:01:42]} Kg7 {[%emt 0:02:39]} 18. Rxe7 {[%emt 0:01:10]} Rfe8 {[%emt 0:09:08]} 19. Rc7 {[%emt 0:03:59]} Rac8 {[%emt 0:03:05]} 20. Rfc1 {[%emt 0:00:19]} Rxc7 {[%emt 0:00:13]} 21. Rxc7 {[%emt 0:00:04]} Qb6 {[%emt 0:00:14]} 22. Qc3 {[%emt 0:00:38]} Nf5 {[%emt 0:00:18]} 23. Qc5 {[%emt 0:03:05]} Qxb2 {[%emt 0:02:42]} 24. Qxd5 {[%emt 0:02:19]} Re7 {[%emt 0:00:06]} 25. Rc8 {[%emt 0:01:17]} Qb6 {[%emt 0:01:35]} 26. Qd8 {[%emt 0:02:38]} Qxd8 {[%emt 0:00:07]} 27. Rxd8 {[%emt 0:00:03]} Rc7 {[%emt 0:01:59]} 28. d5 {[%emt 0:00:28]} Rc1+ {[%emt 0:07:41]} 29. Kh2 {[%emt 0:00:02]} Rc2 {[%emt 0:00:05]} 30. d6 {[%emt 0:00:21]} Rxf2 {[%emt 0:00:06]} 31. d7 {[%emt 0:00:08]} Ne3 {[%emt 0:00:17]} 32. Rg8+ {[%emt 0:00:05]} Kxg8 {[%emt 0:00:08]} 33. d8=Q+ {[%emt 0:00:04]} Kh7 {[%emt 0:20:42]} 34. Qf6 {[%emt 0:00:19]} Rxg2+ {[%emt 0:00:00]} 35. Kh1 {[%emt 0:00:03]} Rg3 {[%emt 0:00:00]} 36. Qxf7+ {[%emt 0:00:06]} Kh8 {[%emt 0:00:00]} 37. e6 {[%emt 0:00:14]} Rxh3+ {[%emt 0:00:00]} 38. Kg1 {[%emt 0:00:02]} Rg3+ {[%emt 0:00:00]} 39. Kf2 {[%emt 0:00:06]} Nf5 {[%emt 0:00:00]} 40. Ng5 {[%emt 0:00:04]} Rxg5 {[%emt 0:00:00]} 41. Qf6+ {[%emt 0:00:03]} Kg8 {[%emt 0:00:00]} 42. Qxg5 {[%emt 0:00:04]} Kg7 {[%emt 0:00:00]} 43. Qd8 {[%emt 0:00:04]} a5 {[%emt 0:00:00]} 44. e7 {[%emt 0:00:03]} Nxe7 {[%emt 0:00:00]} 45. Qxe7+ {[%emt 0:00:02]} Kh6 {[%emt 0:00:00]} 46. Qxb7 {[%emt 0:00:04]} a4 {[%emt 0:00:00]} 47. Qb4 {[%emt 0:00:04]} a3 {[%emt 0:00:00]} 48. Qxa3 {[%emt 0:00:02]} h4 {[%emt 0:00:00]} 49. Qe7 {[%emt 0:00:06]} Kh5 {[%emt 0:00:00]} 50. Kf3 {[%emt 0:00:05]} Kh6 {[%emt 0:00:00]} 51. Qxh4+ {[%emt 0:00:04]} Kg7 {[%emt 0:00:00]} 52. Qg5 {[%emt 0:00:02]} Kf7 {[%emt 0:00:00]} 53. a4 {[%emt 0:00:03]} Kg7 {[%emt 0:00:00]} 54. a5 {[%emt 0:00:03]} Kh7 {[%emt 0:00:00]} 55. a6 {[%emt 0:00:03]} Kg7 {[%emt 0:00:00]} 56. a7 {[%emt 0:00:03]} Kf7 {[%emt 0:00:00]} 57. a8=Q {[%emt 1:22:18]} Ke6 {[%emt 0:00:00]} 58. Qad5# {[%emt 0:00:00]} 1-0

[Event "FIDE World Cup O12-TB 2024"]
[Site "Batumi"]
[Date "2024.07.02"]
[Round "2.8"]
[White "Yerzhanuly Yernur"]
[Black "Minkhajdarov, Ruslan"]
[Result "0-1"]
[ECO "A48"]
[WhiteElo "1810"]
[BlackElo "1921"]
[Annotator "NA RC"]
[PlyCount "98"]
[EventDate "2024.06.23"]
[EventType "swiss"]
[EventCountry "GEO"]
[SourceTitle "playchess.com"]
[Source "ChessBase"]
[SourceQuality "1"]
[TimeControl "5400+30"]

1. d4 {[%emt 0:00:03]} Nf6 {[%emt 0:00:04]} 2. Bf4 {[%emt 0:00:05]} g6 {[%emt 0:00:04]} 3. e3 {[%emt 0:00:42]} d6 {[%emt 0:00:08]} 4. Nf3 {[%emt 0:00:14]} Nh5 {[%emt 0:00:07]} 5. Bg5 {[%emt 0:00:27]} h6 {[%emt 0:00:07]} 6. Bh4 {[%emt 0:00:05]} g5 {[%emt 0:00:05]} 7. Nfd2 {[%emt 0:03:44]} Ng7 {[%emt 0:00:48]} 8. Bg3 {[%emt 0:00:04]} Nf5 {[%emt 0:00:05]} 9. Bd3 {[%emt 0:01:13]} Bg7 {[%emt 0:00:08]} 10. Qf3 {[%emt 0:07:59]} Nxg3 {[%emt 0:00:21]} 11. hxg3 {[%emt 0:02:00]} c5 {[%emt 0:05:14]} 12. Bb5+ {[%emt 0:02:38]} Nd7 {[%emt 0:00:24]} 13. c3 {[%emt 0:03:04]} e6 {[%emt 0:00:13]} 14. Nc4 {[%emt 0:05:35]} Qc7 {[%emt 0:06:16]} 15. Bxd7+ {[%emt 0:16:16]} Qxd7 {[%emt 0:00:07]} 16. dxc5 {[%emt 0:00:18]} dxc5 {[%emt 0:00:15]} 17. Nbd2 {[%emt 0:00:10]} O-O {[%emt 0:04:36]} 18. Ne4 {[%emt 0:04:03]} f5 {[%emt 0:01:52]} 19. Ned6 {[%emt 0:01:07]} g4 {[%emt 0:00:34]} 20. Qd1 {[%emt 0:01:20]} b5 {[%emt 0:01:22]} 21. Nxc8 {[%emt 0:03:32]} Qxc8 {[%emt 0:00:05]} 22. Nd2 {[%emt 0:00:21]} Rd8 {[%emt 0:01:13]} 23. Qc2 {[%emt 0:01:23]} c4 {[%emt 0:00:40]} 24. O-O-O {[%emt 0:06:19]} Qc6 {[%emt 0:00:18]} 25. e4 {[%emt 0:08:14]} Rd3 {[%emt 0:01:46]} 26. exf5 {[%emt 0:01:31]} exf5 {[%emt 0:00:02]} 27. Nf1 {[%emt 0:00:53]} Rxd1+ {[%emt 0:02:31]} 28. Qxd1 {[%emt 0:04:25]} b4 {[%emt 0:00:05]} 29. cxb4 {[%emt 0:05:08]} c3 {[%emt 0:00:11]} 30. Ne3 {[%emt 0:09:27]} cxb2+ {[%emt 0:13:50]} 31. Kb1 {[%emt 0:00:09]} Rc8 {[%emt 0:16:35]} 32. Qd5+ {[%emt 0:01:14]} Qxd5 {[%emt 0:01:38]} 33. Nxd5 {[%emt 0:00:07]} Kf7 {[%emt 0:00:15]} 34. a4 {[%emt 0:01:23]} Bd4 {[%emt 0:00:43]} 35. a5 {[%emt 0:06:54]} h5 {[%emt 0:05:20]} 36. Ne3 {[%emt 0:05:07]} Ke6 {[%emt 0:00:36]} 37. Nc2 {[%emt 0:00:50]} Bxf2 {[%emt 0:00:40]} 38. Rxh5 {[%emt 0:00:23]} Rd8 {[%emt 0:02:14]} 39. Kxb2 {[%emt 0:00:23]} Bxg3 {[%emt 0:00:26]} 40. Ne3 {[%emt 0:00:47]} Be5+ {[%emt 0:02:59]} 41. Kc2 {[%emt 0:00:19]} Rc8+ {[%emt 0:00:05]} 42. Kd3 {[%emt 0:00:54]} Rc3+ {[%emt 0:00:22]} 43. Kd2 {[%emt 0:00:04]} Rb3 {[%emt 0:00:32]} 44. Rh6+ {[%emt 0:01:04]} Bf6 {[%emt 0:00:10]} 45. Rh5 {[%emt 0:00:29]} Rb2+ {[%emt 0:04:52]} 46. Kd3 {[%emt 0:00:27]} Rxb4 {[%emt 0:02:35]} 47. Rxf5 {[%emt 0:00:17]} Rb3+ {[%emt 0:00:15]} 48. Kd2 {[%emt 0:00:07]} Bd4 {[%emt 0:00:26]} 49. Nc2 {[%emt 0:00:32]} Bc3+ {[%emt 0:00:05]} 0-1

[Event "FIDE World Cup O12-TB 2024"]
[Site "Batumi"]
[Date "2024.07.02"]
[Round "2.9"]
[White "Tatvidze, Davit"]
[Black "Haresh, Venkata Narayanaswam"]
[Result "1/2-1/2"]
[ECO "E62"]
[WhiteElo "2000"]
[BlackElo "1728"]
[Annotator "NA RC"]
[PlyCount "78"]
[EventDate "2024.06.23"]
[EventType "swiss"]
[EventCountry "GEO"]
[SourceTitle "playchess.com"]
[Source "ChessBase"]
[SourceQuality "1"]
[TimeControl "5400+30"]

1. c4 {[%emt 0:00:02]} Nf6 {[%emt 0:00:05]} 2. Nc3 {[%emt 0:00:31]} g6 {[%emt 0:00:11]} 3. g3 {[%emt 0:00:07]} Bg7 {[%emt 0:00:09]} 4. Bg2 {[%emt 0:00:03]} O-O {[%emt 0:00:09]} 5. Nf3 {[%emt 0:00:05]} d6 {[%emt 0:00:24]} 6. d4 {[%emt 0:00:19]} c6 {[%emt 0:00:08]} 7. O-O {[%emt 0:00:13]} Qa5 {[%emt 0:00:04]} 8. e4 {[%emt 0:05:33]} e5 {[%emt 1:33:20]} 9. h3 {[%emt 0:13:33]} exd4 {[%emt 0:00:00]} 10. Nxd4 {[%emt 0:00:26]} Qc5 {[%emt 0:00:00]} 11. Nb3 {[%emt 0:00:35]} Qxc4 {[%emt 0:00:00]} 12. Qxd6 {[%emt 0:00:19]} Ne8 {[%emt 0:00:00]} 13. Qd1 {[%emt 0:02:47]} b6 {[%emt 0:00:00]} 14. Be3 {[%emt 0:01:18]} Bb7 {[%emt 0:00:00]} 15. Rc1 {[%emt 0:01:13]} Qe6 {[%emt 0:00:00]} 16. Qc2 {[%emt 0:04:34]} c5 {[%emt 0:00:00]} 17. Bxc5 {[%emt 0:08:20]} Ba6 {[%emt 0:00:00]} 18. Bxf8 {[%emt 0:00:35]} Bxf1 {[%emt 0:00:00]} 19. Rxf1 {[%emt 0:00:31]} Kxf8 {[%emt 0:00:00]} 20. e5 {[%emt 0:22:25]} Nc6 {[%emt 0:00:00]} 21. f4 {[%emt 0:00:38]} Rc8 {[%emt 0:00:00]} 22. Qe4 {[%emt 0:00:35]} Kg8 {[%emt 0:00:00]} 23. Nd4 {[%emt 0:02:22]} Nxd4 {[%emt 0:00:00]} 24. Qxd4 {[%emt 0:00:06]} Bf8 {[%emt 0:00:00]} 25. Kh2 {[%emt 0:00:48]} Bc5 {[%emt 0:00:00]} 26. Qa4 {[%emt 0:01:03]} Ng7 {[%emt 0:00:00]} 27. Qxa7 {[%emt 0:05:19]} Nf5 {[%emt 0:00:00]} 28. Bd5 {[%emt 0:00:24]} Qe8 {[%emt 0:00:00]} 29. Ne4 {[%emt 0:02:46]} Be7 {[%emt 0:00:00]} 30. e6 {[%emt 0:01:52]} Qb5 {[%emt 0:00:00]} 31. Qd7 {[%emt 0:12:29]} Rc2+ {[%emt 0:05:28]} 32. Rf2 {[%emt 0:00:15]} Rxf2+ {[%emt 0:06:32]} 33. Nxf2 {[%emt 0:01:21]} Qe2 {[%emt 0:00:00]} 34. Kg1 {[%emt 0:11:15]} Qe1+ {[%emt 0:01:00]} 35. Kg2 Qe2 {[%emt 0:00:30]} 36. Qc8+ {[%emt 0:03:48]} Kg7 {[%emt 0:00:30]} 37. exf7 Ne3+ {[%emt 0:00:30]} 38. Kg1 {[%emt 0:01:00]} Qf1+ 39. Kh2 {[%emt 0:00:30]} Qxf2+ {[%emt 0:01:00]} 1/2-1/2